[Event "FIDE WSCC 65 2022"]
[Site "Assisi"]
[Date "2022.11.15"]
[Round "1.10"]
[White "Sciupokas, Arunas"]
[Black "Hebert, Jean"]
[Result "0-1"]
[ECO "A00"]
[WhiteElo "1948"]
[BlackElo "2333"]
[Annotator "TA"]
[PlyCount "105"]
[EventDate "2022.11.14"]
[EventType "swiss"]
[EventCountry "ITA"]
[SourceTitle "playchess.com"]
[Source "ChessBase"]
[SourceQuality "1"]
[TimeControl "40/5400+30:1800+30"]

{[%evp 9,105,-17,-22,-21,-21,-20,-14,-27,-23,-28,-21,-19,-12,-74,-9,-10,-12,-27,0,0,0,-69,-30,-51,-5,-24,-15,-43,-16,-34,-20,-36,0,-24,0,0,0,-27,16,8,16,7,27,0,29,0,13,-7,-8,-10,-7,-10,10,10,17,0,0,-21,-15,-23,0,-8,-12,-13,0,0,0,0,0,-6,-13,-8,-12,-12,-21,-15,-6,-16,0,-24,41,-26,0,0,7,0,0,-45,-38,-95,-93,-119,-107,-110,-107,-172,-108,-120]} 1. Nc3 d5 2. Nf3 Nf6 3. d3 Nc6 4. g3 e5 5. Bg2 d4 6. Nb1 {A00: Irregular Openings.} Be7 7. O-O O-O 8. Bg5 {The position is equal.} Be6 9. Nbd2 h6 10. Bxf6 Bxf6 11. c4 (11. c3 $11) 11... dxc3 (11... Be7 $17) 12. bxc3 $11 Qd7 13. Re1 {[#]} Rab8 $146 ({Predecessor:} 13... Rfd8 14. Qa4 Rab8 15. Rab1 Qc8 16. Rb2 a6 17. Reb1 b5 18. Qc2 Qd7 19. a4 bxa4 20. Qxa4 Rxb2 21. Rxb2 {1-0 (37) Koziol,P (1410)-Metz,L (1535) LSS email 2008}) 14. Nb3 b6 {[%cal Oe5e4]} 15. Nbd2 (15. d4 $11) 15... Rfd8 {Black is more active.} (15... g5 {seems wilder.} 16. Qa4 g4 17. Ne4 Bg7) 16. Qc2 Be7 (16... g5 $15 {might be stronger.}) 17. Red1 Qe8 18. Nf1 Bf6 19. N3d2 Na5 20. Ne3 c5 21. Rab1 Nc6 22. Ne4 Be7 23. Nd2 (23. Qa4 $5 {[%cal Re4c5]}) 23... Rbc8 24. Ndc4 Bf6 25. a4 Rb8 26. Rf1 Qd7 27. Rfd1 Ne7 28. Nd2 Bg5 29. Nec4 Bxd2 30. Nxd2 Bd5 31. Bxd5 Nxd5 32. Nf3 Qe6 33. e4 {[#]} Nf4 {[%cal Od8d6]} 34. Ne1 (34. a5 {seems wilder.} Rd6 35. Nh4 Nh3+ 36. Kf1) 34... Ng6 (34... Nh3+ {is more complex.} 35. Kg2 Qg4 36. f3 Qd7) 35. f3 h5 36. Ng2 Qf6 37. Qf2 Rd7 38. Ne3 Ne7 39. Rd2 Rbd8 40. Qe2 Qc6 41. Ra1 h4 42. Nc4 Qe6 {[%cal Oe6c4]} 43. Rad1 f6 44. Qg2 Qc6 (44... Ng6 $11) 45. Nb2 (45. gxh4 $14 Qxa4 46. Kh1) 45... Kf7 46. f4 Ng6 47. f5 Ne7 48. g4 g5 49. h3 ({White should try} 49. Qe2 $15) 49... a6 $17 {[%cal Ba7a6,Ba6b5][%mdl 32]} 50. Qe2 b5 {Against Nc4} 51. axb5 axb5 52. Ra1 (52. Qe3 $17) 52... Nc8 (52... c4 $1 $19 {Hoping for ...cxd3.} 53. Rad1 b4) 53. c4 {Weighted Error Value: White=0.19 (very precise) /Black=0.16 (very precise)} 0-1

[Event "FIDE WSCC 65 2022"]
[Site "Assisi"]
[Date "2022.11.15"]
[Round "1.11"]
[White "Bogdanov, Valentin"]
[Black "Guglielmi, Giuseppe"]
[Result "1-0"]
[ECO "D43"]
[WhiteElo "2323"]
[BlackElo "1933"]
[Annotator "TA"]
[PlyCount "65"]
[EventDate "2022.11.14"]
[EventType "swiss"]
[EventCountry "ITA"]
[SourceTitle "playchess.com"]
[Source "ChessBase"]
[SourceQuality "1"]
[TimeControl "40/5400+30:1800+30"]

{[%evp 9,65,6,68,69,62,61,56,52,72,66,80,52,111,111,110,107,111,106,112,110,112,113,110,93,100,68,143,120,120,117,124,104,208,183,515,502,707,705,691,670,658,464,1382,1360,5521,5514,5485,5485,5381,3606,29993,29994,29994,29995,29995,29996,29996,29997]} 1. d4 d5 2. c4 c6 3. Nc3 Nf6 4. Nf3 e6 5. Bg5 Qa5 (5... dxc4 $11 6. e4 b5) 6. Bxf6 $14 {D43: Semi-Slav: 5 Bg5 h6.} gxf6 7. e3 Nd7 8. a3 {[%cal Ba2a3,Ba3a4][%mdl 32] White is slightly better.} a6 9. b4 Qd8 {[#]} 10. Bd3 $146 ({Predecessor:} 10. Be2 f5 11. O-O Bg7 12. Qc2 O-O 13. Rfc1 Nf6 14. a4 Ne4 15. a5 Qd6 16. Bd3 {0-1 (54) Moiseenko,A (2692)-Lu,S (2599) Baku 2015}) 10... b5 (10... dxc4 $14 11. Bxc4 b5) 11. c5 $16 f5 12. a4 {[%cal Ra4b5] [#] Black must now prevent axb5.} Bb7 13. O-O Bg7 14. Ra2 O-O 15. Ne2 Nf6 16. Ne5 Ne4 17. f3 Nf6 ({Black should play} 17... f6 $1 $14) 18. Nf4 Nd7 19. Nxd7 {White is much more active. The black rooks are badly placed.} Qxd7 20. g4 fxg4 (20... Qe7 $16) 21. Rg2 f5 $2 (21... Qe7 {is tougher.} 22. fxg4 (22. Rxg4 f5 $11) 22... e5 23. dxe5 Qxe5) 22. fxg4 $18 Kh8 23. gxf5 exf5 24. Qh5 {Intending Ng6+ and mate.} Qe8 25. Qh3 {And now Ng6+ would win.} (25. Bxf5 Qxh5 26. Nxh5 Bh6 $15) 25... Bc8 (25... Rf6 $142 26. Rxg7 Kxg7 27. Nh5+ (27. Bxf5 Rxf5 28. Qxf5 Qxe3+ 29. Kg2 Rg8 $16) 27... Kh8) 26. Ng6+ Kg8 27. Nxf8 Qxf8 28. Bxf5 Bxf5 29. Rxf5 {[%cal Oh3g3] White threatens Qg3! and mate.} Qc8 {[#]} 30. Rxg7+ $1 {White mates.} Kxg7 31. Qg3+ Kh8 32. Qe5+ Kg8 33. Rg5+ {Weighted Error Value: White=0.23 (precise) /Black=0.62} 1-0

[Event "FIDE WSCC 65 2022"]
[Site "Assisi"]
[Date "2022.11.15"]
[Round "1.12"]
[White "Sibille, Ettore"]
[Black "Renman, Nils-Gustaf"]
[Result "0-1"]
[ECO "C01"]
[WhiteElo "1927"]
[BlackElo "2320"]
[Annotator "TA"]
[PlyCount "63"]
[EventDate "2022.11.14"]
[EventType "swiss"]
[EventCountry "ITA"]
[SourceTitle "playchess.com"]
[Source "ChessBase"]
[SourceQuality "1"]
[TimeControl "40/5400+30:1800+30"]

{[%evp 9,63,-8,77,65,75,72,115,118,106,110,116,133,142,138,144,120,115,104,106,109,100,95,119,93,96,115,111,107,110,89,121,79,85,0,105,100,127,86,82,70,72,-146,-166,-501,-492,-491,-475,-501,-495,-497,-496,-12248,-12263,-1370,-908,-29999]} 1. e4 e6 2. d4 d5 3. Bd3 {[%cal Bf1d3,Bd3e4,Be4f3,Bf3d1][%mdl 32]} dxe4 4. Bxe4 Nf6 5. Bf3 e5 (5... c5 $11) 6. dxe5 $16 {C01: French: Exchange Variation.} Qxd1+ {[#]} 7. Bxd1 $146 ({Predecessor:} 7. Kxd1 Ng4 8. Nh3 Nxe5 9. Re1 Bd6 10. Bf4 Nbd7 11. Bg4 Kd8 12. Bxd7 Nxd7 13. Bxd6 cxd6 {1-0 (60) Arencibia Monduy,A (2133)-Ozen,B (2369) Chess.com INT 2021}) 7... Ng4 8. Nf3 {White is better.} Nc6 9. Bf4 Bc5 10. O-O Be6 11. h3 Nh6 12. c3 Nf5 13. Bb3 h6 14. Bxe6 fxe6 15. Nbd2 O-O 16. Ne4 Bb6 {[%cal Of5d4]} 17. Bh2 a5 18. a4 Nfe7 19. Rad1 Ng6 20. Nfd2 Ncxe5 {[#]} 21. Nb3 ({White should try} 21. b3 $1 $16) 21... Nf4 {[#]} (21... Nc4 $1 $11) 22. Nbc5 $1 Rae8 23. Bxf4 ({Don't take} 23. Nxb7 Ned3 $14) 23... Rxf4 24. g3 Rf5 25. b3 $2 (25. Nxb7 $16 {stays on course.} Rb8 26. Nd8) 25... Bxc5 26. g4 $2 (26. Nxc5 {was the crucial defense.} Nf3+ 27. Kg2 Rxc5 28. Kxf3 Rxc3+ 29. Ke4) 26... Nf3+ $19 {Black is clearly winning.} 27. Kg2 Nh4+ 28. Kg3 Rf3+ 29. Kxh4 Be7+ 30. Kh5 (30. g5 $142 Rf4+ 31. Kg3 Rxe4 32. gxh6) 30... Kh7 {[%cal Rf3h3]} 31. g5 Rf4 {[%csl Gh7][%cal Rg7g6]} 32. b4 {Black used his chance.  Weighted Error Value: White=0.59/Black=0.32} 0-1

[Event "FIDE WSCC 65 2022"]
[Site "Assisi"]
[Date "2022.11.15"]
[Round "1.13"]
[White "Cocozza, Mario"]
[Black "Carvalho Jr, Celestino"]
[Result "1-0"]
[ECO "C66"]
[WhiteElo "2298"]
[BlackElo "1924"]
[Annotator "TA"]
[PlyCount "118"]
[EventDate "2022.11.14"]
[EventType "swiss"]
[EventCountry "ITA"]
[SourceTitle "playchess.com"]
[Source "ChessBase"]
[SourceQuality "1"]
[TimeControl "40/5400+30:1800+30"]

{[%evp 18,118,20,14,55,58,75,76,72,65,115,106,147,140,157,146,162,149,190,153,180,150,141,129,126,129,157,152,155,157,156,156,164,160,157,139,150,122,122,122,150,150,200,150,262,150,262,255,255,247,247,247,247,247,247,240,240,240,247,247,399,389,849,847,862,803,678,677,1007,927,840,745,6246,6246,5907,5318,5646,5622,4612,1174,1886,1886,1000,28,29972,29974,29974,29975,29975,29977,29977,29978,29980,8,8,8,8,8,29984,29985,29985,29986,29987]} 1. e4 e5 2. Nf3 Nc6 3. Bb5 Be7 4. Nc3 d6 5. d4 exd4 6. Nxd4 Bd7 7. O-O Nf6 8. Re1 O-O 9. Bxc6 bxc6 10. Qf3 Ng4 {[#] C66: Ruy Lopez: Steinitz Defence.} 11. Nxc6 $1 Bxc6 12. Qxg4 Bf6 {White is better.} 13. Bd2 Rb8 (13... Bd4 $14) 14. b3 $16 {[#]} g6 $146 ({Predecessor:} 14... Re8 15. Rad1 Re5 16. Be3 h5 17. Qf3 g6 18. Bxa7 Rb4 19. Bd4 Rf5 20. Qe3 Bg5 21. Qe2 Ra5 22. Nd5 Bxd5 23. exd5 Rxd5 24. Qe8+ {1-0 (24) Berelowitsch,A (2554)-Esser,N (2099) Duesseldorf 2011}) 15. Rad1 Bg7 16. Nd5 f5 17. Qg5 Bf6 18. Nxf6+ Qxf6 19. Qxf6 Rxf6 20. Bc3 Rf7 21. e5 dxe5 22. Rxe5 Rb5 23. f3 Rxe5 24. Bxe5 {[%mdl 4096] Endgame KRB-KRB} Re7 25. Rd8+ Kf7 {[#]} 26. Rc8 $1 {White is more active.} Ke6 (26... g5 27. Kf2) 27. Rxc7 ({Inferior is} 27. Bxc7 Bb7 28. Rd8 Rxc7 $17) 27... Rxc7 28. Bxc7 {KB-KB} Kd5 29. c3 a6 (29... g5 $16 30. Kf2 Ke6) 30. Kf2 Bb7 (30... g5 $16 {is a better defense.} 31. Ke2 Ke6) 31. Ke3 (31. h4 $18) 31... Bc6 (31... g5 $16 32. c4+ Kc5) 32. h4 Bd7 33. Bb6 Bc8 34. Bd4 Ke6 35. Kf4 Bb7 36. c4 Bc6 37. Bf2 Kf6 38. Ke3 h6 $2 (38... Ke6 {was called for.} 39. Kd4 Kd7) 39. Kd4 $18 {aiming for Kc5.} Bb7 $2 (39... Be8 40. Kc5 Bd7) 40. Kc5 Ke5 41. Bg3+ f4 42. Be1 g5 43. hxg5 hxg5 44. Bc3+ Kf5 45. Kd6 g4 46. fxg4+ Kxg4 47. c5 Bxg2 48. c6 {Threatening mate with c7.} Bh3 49. c7 Kf3 50. Ke7 $2 (50. b4 $18 Ke4 51. Kc5) 50... Ke3 $2 {[%mdl 8192] [#]} (50... Ke2 $11) 51. Kd8 $1 Kd3 52. Be1 ({And not} 52. c8=R Bxc8 53. Be1 Bf5 $11) 52... Kc2 53. c8=Q+ Bxc8 54. Kxc8 {KB-KPP} Kb2 55. a4 $2 (55. Kb7 {mates} Kc2 56. b4 Kd1 57. Bh4 Ke2 58. Kxa6 Kf3 59. b5 Kg4 60. Be1) 55... Kxb3 $11 56. a5 {Kb7 would kill now.} Kc4 57. Kb7 Kc5 $2 {[%mdl 8192]} (57... Kb5 $11) 58. Kxa6 Kc6 59. Ka7 Kc5 {Weighted Error Value: White=0.09 (flawless) /Black=0.30} 1-0

[Event "FIDE WSCC 65 2022"]
[Site "Assisi"]
[Date "2022.11.15"]
[Round "1.14"]
[White "Tsifanskaya, Ludmila A"]
[Black "Roos, Louis"]
[Result "1-0"]
[ECO "B07"]
[WhiteElo "1919"]
[BlackElo "2293"]
[Annotator "TA"]
[PlyCount "97"]
[EventDate "2022.11.14"]
[EventType "swiss"]
[EventCountry "ITA"]
[SourceTitle "playchess.com"]
[Source "ChessBase"]
[SourceQuality "1"]
[TimeControl "40/5400+30:1800+30"]

{[%evp 20,97,51,32,76,77,83,70,75,71,128,117,145,147,157,150,192,202,228,45,41,63,53,51,41,0,0,0,0,0,0,0,96,108,114,106,141,145,136,117,137,72,86,0,89,91,96,18,37,19,218,218,243,32,33,14,70,69,130,39,132,104,200,196,182,180,243,94,87,67,80,66,243,243,243,243,29964,12846,29972,5118]} 1. e4 d6 2. d4 Nf6 3. Nc3 g6 4. Nge2 Bg7 5. g3 O-O 6. Bg2 e5 7. h3 c6 8. a4 Nbd7 9. Be3 a5 10. O-O Re8 11. g4 {[%cal Bg3g4,Bg4g5][%mdl 32]} Nf8 {[%cal Oc8g4] B07: Pirc Defence: Miscellaneous Systems.} 12. Qd2 exd4 13. Bxd4 {[#]} Ne6 $146 {White is slightly better.} ({Predecessor:} 13... Be6 14. Rad1 Bc4 15. Rfe1 Bxe2 16. Rxe2 h5 17. g5 N6d7 18. Be3 Nc5 19. Qxd6 Qxd6 20. Rxd6 Bxc3 21. Bxc5 Bxb2 {0-1 (56) Krush,I (2455)-Shulman,Y (2624) Reykjavik 2010}) 14. Be3 h5 (14... Nc5 $142) 15. g5 $16 Nd7 16. f4 Nb6 17. b3 {Against Nc4} Nf8 18. Rad1 d5 19. exd5 $2 (19. f5 $18) 19... Nxd5 $14 20. Nxd5 cxd5 21. Bf2 Qc7 22. Nd4 {[%cal Be2d4,Bd4b5,Bb5c7][%mdl 32]} ({Much worse is} 22. Bxd5 Bxh3 23. Qd3 Bxf1 24. Kxf1 Ne6 $17) 22... Ne6 23. Nb5 ({Of course not} 23. Bxd5 Nxf4 24. Nb5 Qe5 $17) 23... Qxf4 24. Qxf4 {[%mdl 64] Remove Defender} Nxf4 25. Nc7 Bxh3 (25... Bf5 $11 {remains equal.}) 26. Bxh3 $16 Nxh3+ 27. Kg2 $1 Nxg5 28. Nxa8 Rxa8 29. Rxd5 Ne6 {White must now prevent ...Nf4+.} 30. Bh4 (30. Rd7 $142) 30... Ra6 31. Bf6 {White is much more active.} (31. c4 $16) 31... Nf4+ 32. Rxf4 Bxf6 {[%mdl 4096] Endgame KRR-KRB} 33. c4 (33. Rb5 $16) 33... Kg7 $11 34. c5 Rc6 $2 (34... g5 $1 $11 35. Rc4 Rc6) 35. b4 $18 axb4 36. Rxb4 (36. Rd6 $1 $18) 36... Rc7 $14 37. Rc4 {[%mdl 1024] White has compensation.} Be7 (37... g5 $11) 38. a5 $1 {[%cal Ba4a5,Ba5a6][%mdl 32]} Kf8 (38... g5 $14) 39. Kf3 (39. Rc2 $16) 39... f6 ({Black should play} 39... g5 $1 $14) 40. Rd3 {[%cal Oc5c6]} Kf7 (40... Rxc5 $2 41. Rxc5 Bxc5 42. Rb3 $18) (40... Bxc5 $2 41. Rdc3 $18) (40... g5 $16) 41. c6 $1 $18 bxc6 42. a6 c5 {[#]} (42... Ke6 $142) 43. Ra4 (43. Rb3 $1 $18 {[%cal Rb3b7] and the rest is easy.}) 43... c4 $16 44. Rc3 {Strongly threatening a7.} Ra7 45. Rcxc4 {aiming for Rc6.} Bd6 $2 ({Better is} 45... g5 $14) 46. Rc6 $18 Be5 {[#]} 47. Rb4 $1 Ra8 $2 (47... Kg7 $18 48. Rb7+ Rxb7 49. axb7 f5) 48. Rb7+ Kg8 49. a7 {Weighted Error Value: White=0.30/Black=0.74} 1-0

[Event "FIDE WSCC 65 2022"]
[Site "Assisi"]
[Date "2022.11.15"]
[Round "1.15"]
[White "Binham, Timothy F."]
[Black "Catracchia, Mauro"]
[Result "0-1"]
[ECO "C26"]
[WhiteElo "2284"]
[BlackElo "1908"]
[Annotator "TA"]
[PlyCount "86"]
[EventDate "2022.11.14"]
[EventType "swiss"]
[EventCountry "ITA"]
[SourceTitle "playchess.com"]
[Source "ChessBase"]
[SourceQuality "1"]
[TimeControl "40/5400+30:1800+30"]

{[%evp 9,86,-7,-18,-29,-16,-29,10,9,37,-6,8,22,54,50,21,12,20,-5,19,2,35,23,50,35,39,0,0,0,0,0,8,9,8,7,4,-59,90,23,116,18,14,0,0,0,0,-6,-8,-18,-14,-8,0,0,85,39,77,77,134,132,104,0,0,0,-6,-51,-27,-85,-78,-514,-509,-691,-141,-591,-116,-112,-126,-245,-143,-29998,-29999]} 1. e4 e5 2. Nc3 Nf6 3. g3 Bc5 4. Bg2 O-O 5. Nf3 d6 6. d3 {C26: Vienna Game: 2...Nf6, sidelines .} c6 7. O-O Bg4 8. h3 {[#] The position is equal.} Bh5 $146 ({Predecessor:} 8... Bxf3 9. Qxf3 b5 10. g4 Nbd7 11. Kh2 Qc7 12. g5 Ne8 13. Qg3 f6 14. g6 hxg6 15. Qxg6 {1-0 (38) Mazuchowski,T-Finegold,G (2115) Troy 1993}) 9. Qe1 Re8 10. Na4 Nbd7 11. Nxc5 Nxc5 12. Be3 Ne6 13. Qc3 Rc8 14. a4 (14. Bxa7 $2 {too greedy.} Bxf3 15. Bxf3 c5 $19) 14... Nd7 (14... d5 {keeps more tension.} 15. Qxe5 c5 16. Rfe1 Bxf3 17. Bxf3 Nd4) 15. a5 ({Reject} 15. Bxa7 Bxf3 16. Bxf3 b6 $17) 15... b6 16. Nh4 (16. axb6 {simplifies} axb6 17. Qb3 Bxf3 18. Bxf3 Qc7 19. c3) 16... d5 $1 {Strongly threatening ...d4.} 17. exd5 cxd5 18. Qb3 d4 19. Bd2 Nf4 20. gxf4 Qxh4 21. axb6 axb6 22. Rfe1 (22. Qb5 $1 $11 Red8 23. Ra7 Rxc2 24. Rxd7 Rxd2 25. Qxe5 $1) 22... exf4 (22... Bg6 $1 $15 23. fxe5 Bf5) 23. Qd5 ({White should play} 23. Rxe8+ $1 $16 Rxe8 24. Qd5) 23... Nf6 (23... Red8 $11) 24. Qxd4 (24. Rxe8+ $16 Nxe8 25. Qxd4) 24... Red8 $11 25. Qxf4 (25. Qa4 {seems wilder.} b5 26. Qxb5 Rxc2 27. Qa5) 25... Qxf4 26. Bxf4 {A strong pair of Bishops.} Rxc2 {[%cal Oh7h6]} 27. b4 {Against h6} h6 $1 28. Be5 (28. Be3 {simplifies} Nd5 29. Bxd5 Rxd5 30. Bxb6 Bg6 31. Rad1) 28... Nd5 (28... Rxd3 $2 29. Ra8+ Kh7 30. Bxf6 gxf6 31. Be4+ Bg6 32. Bxd3 Bxd3 33. Re7 $16) 29. Re4 {Hoping for Rd4.} Nc3 30. Rc4 Ne2+ (30... Rxd3 $11 {keeps the balance.} 31. Be4 Nxe4 32. Rxc2 Rxh3) 31. Kf1 (31. Kh2 $16 Rd2 32. Bc7) 31... Rd2 32. Be4 $1 R2xd3 (32... f6 $142 33. Bc7 Re8) 33. Bxd3 $16 Rxd3 34. Ke1 (34. Re1 $16) 34... Ng1 $11 35. Rc8+ Kh7 {aiming for ...Nf3+.} 36. Bc3 Nxh3 37. Rc7 (37. Rc4 $11) 37... Ng5 $17 {And now ...Ne4 would win.} 38. f4 $2 {[%mdl 8192] [#]} (38. Rc1 $17 {is tougher.}) 38... Ne4 $1 $19 39. Bb2 Re3+ 40. Kf1 {[#]} Rf3+ $2 (40... Re2 $1 $19 {has better winning chances.} 41. Ra3 (41. Bd4 $2 Nd2+ 42. Kg1 Nf3+ 43. Kf1 Nxd4 $19) 41... Rxb2) 41. Kg1 $17 Rxf4 42. Ra6 (42. Rc2 $17 {was worth a try.}) 42... Bf3 (42... Rg4+ $19 43. Kf1 Nd2+ 44. Kf2 Rxb4) 43. Bc1 $2 {[%mdl 8192]} (43. Ra3 $17) 43... Rh4 {Weighted Error Value: White=0.60/Black=0.58} 0-1